[Event "January 9 Late 2024"]
[Site "https://www.chess.com"]
[Date "2024.01.09"]
[Round "3"]
[White "Petre, Nad-Titus"]
[Black "Lund, Gunnar"]
[Result "0-1"]
[Board "92"]
[TimeControl "180+1"]
[WhiteFideId "1204165"]
[BlackFideId "1520814"]
[WhiteElo "2506"]
[BlackElo "2676"]
[WhiteTeam "ROU"]
[BlackTeam "NOR"]
[WhiteClock "0:00:03"]
[BlackClock "0:00:19"]

1. d4 {[%clk 0:03:00]}  d5 {[%clk 0:02:56]} 2. c4 {[%clk 0:02:57]}  e6 {[%clk 0:02:57]} 3. Nc3 {[%clk 0:02:57]}  Nf6 {[%clk 0:02:57]} 4. cxd5 {[%clk 0:02:57]}  exd5 {[%clk 0:02:57]} 5. Bg5 {[%clk 0:02:58]}  Be7 {[%clk 0:02:57]} 6. e3 {[%clk 0:02:58]}  c6 {[%clk 0:02:58]} 7. Bd3 {[%clk 0:02:56]}  Nbd7 {[%clk 0:02:58]} 8. Nge2 {[%clk 0:02:49]}  h6 {[%clk 0:02:57]} 9. Bh4 {[%clk 0:02:46]}  Nh5 {[%clk 0:02:57]} 10. Bxe7 {[%clk 0:02:42]}  Qxe7 {[%clk 0:02:58]} 11. Qc2 {[%clk 0:02:42]}  Nb6 {[%clk 0:02:57]} 12. O-O-O {[%clk 0:02:36]}  Bd7 {[%clk 0:02:55]} 13. Kb1 {[%clk 0:02:36]}  O-O-O {[%clk 0:02:55]} 14. Rc1 {[%clk 0:02:32]}  Kb8 {[%clk 0:02:54]} 15. Na4 {[%clk 0:02:26]}  Nxa4 {[%clk 0:02:49]} 16. Qxa4 {[%clk 0:02:27]}  Qg5 {[%clk 0:02:48]} 17. g3 {[%clk 0:01:53]}  Bf5 {[%clk 0:02:45]} 18. Qc2 {[%clk 0:01:43]}  Bxd3 {[%clk 0:02:43]} 19. Qxd3 {[%clk 0:01:44]}  Nf6 {[%clk 0:02:43]} 20. h4 {[%clk 0:01:33]}  Qg4 {[%clk 0:02:40]} 21. Qc2 {[%clk 0:01:24]}  Qe4 {[%clk 0:02:38]} 22. h5 {[%clk 0:01:15]}  Rhe8 {[%clk 0:02:34]} 23. Nf4 {[%clk 0:01:15]}  Qxc2+ {[%clk 0:02:28]} 24. Kxc2 {[%clk 0:01:13]}  Kc7 {[%clk 0:02:28]} 25. Kd3 {[%clk 0:01:12]}  Kd6 {[%clk 0:02:28]} 26. b4 {[%clk 0:01:11]}  Nd7 {[%clk 0:02:18]} 27. Rh4 {[%clk 0:00:51]}  Nb6 {[%clk 0:02:16]} 28. Rg4 {[%clk 0:00:49]}  Rg8 {[%clk 0:02:16]} 29. a4 {[%clk 0:00:46]}  Nxa4 {[%clk 0:02:11]} 30. Ra1 {[%clk 0:00:45]}  b5 {[%clk 0:02:12]} 31. Kc2 {[%clk 0:00:40]}  Rd7 {[%clk 0:02:10]} 32. Nd3 {[%clk 0:00:40]}  Rc7 {[%clk 0:01:58]} 33. Nc5 {[%clk 0:00:37]}  Nxc5 {[%clk 0:01:57]} 34. dxc5+ {[%clk 0:00:37]}  Ke6 {[%clk 0:01:54]} 35. Kd3 {[%clk 0:00:38]}  g6 {[%clk 0:01:46]} 36. Ra6 {[%clk 0:00:36]}  g5 {[%clk 0:01:40]} 37. Rd4 {[%clk 0:00:36]}  f5 {[%clk 0:01:38]} 38. f3 {[%clk 0:00:34]}  Re8 {[%clk 0:01:30]} 39. Kd2 {[%clk 0:00:34]}  Kd7 {[%clk 0:01:30]} 40. Rd3 {[%clk 0:00:34]}  Kc8 {[%clk 0:01:29]} 41. Rda3 {[%clk 0:00:34]}  Kb8 {[%clk 0:01:29]} 42. Ra1 {[%clk 0:00:28]}  Re6 {[%clk 0:01:26]} 43. R1a3 {[%clk 0:00:28]}  Rce7 {[%clk 0:01:25]} 44. Rd3 {[%clk 0:00:18]}  Kb7 {[%clk 0:01:19]} 45. Ra1 {[%clk 0:00:16]}  f4 {[%clk 0:01:11]} 46. exf4 {[%clk 0:00:15]}  gxf4 {[%clk 0:01:11]} 47. g4 {[%clk 0:00:15]}  Re2+ {[%clk 0:01:08]} 48. Kc3 {[%clk 0:00:16]}  R2e3 {[%clk 0:01:08]} 49. Rd1 {[%clk 0:00:16]}  a5 {[%clk 0:01:00]} 50. bxa5 {[%clk 0:00:15]}  Ka6 {[%clk 0:01:01]} 51. Kb4 {[%clk 0:00:16]}  Re2 {[%clk 0:00:55]} 52. R1d2 {[%clk 0:00:14]}  Re1 {[%clk 0:00:49]} 53. Rd1 {[%clk 0:00:14]}  R7e3 {[%clk 0:00:26]} 54. R1d2 {[%clk 0:00:12]}  Rb1+ {[%clk 0:00:22]} 55. Kc3 {[%clk 0:00:13]}  Rc1+ {[%clk 0:00:21]} 56. Kb2 {[%clk 0:00:12]}  Rxc5 {[%clk 0:00:20]} 57. Rxe3 {[%clk 0:00:10]}  fxe3 {[%clk 0:00:21]} 58. Re2 {[%clk 0:00:11]}  d4 {[%clk 0:00:21]} 59. f4 {[%clk 0:00:11]}  Kxa5 {[%clk 0:00:20]} 60. Rg2 {[%clk 0:00:09]}  d3 {[%clk 0:00:20]} 61. g5 {[%clk 0:00:07]}  hxg5 {[%clk 0:00:19]} 62. fxg5 {[%clk 0:00:08]}  d2 {[%clk 0:00:19]} 63. Rg1 {[%clk 0:00:07]}  e2 {[%clk 0:00:19]} 64. Ra1+ {[%clk 0:00:08]}  Kb4 {[%clk 0:00:19]} 65. h6 {[%clk 0:00:03]}  d1=Q {[%clk 0:00:19]} 0-1

[Event "January 9 Late 2024"]
[Site "https://www.chess.com"]
[Date "2024.01.09"]
[Round "3"]
[White "Mizzi, Jack"]
[Black "Annaberdiyev, Meylis"]
[Result "0-1"]
[Board "94"]
[TimeControl "180+1"]
[WhiteFideId "5602521"]
[BlackFideId "14000563"]
[WhiteElo "2503"]
[BlackElo "2672"]
[WhiteTeam "MLT"]
[BlackTeam "TKM"]
[WhiteClock "0:00:00"]
[BlackClock "0:00:10"]

1. d4 {[%clk 0:03:00]}  Nf6 {[%clk 0:02:59]} 2. c4 {[%clk 0:03:01]}  e6 {[%clk 0:02:59]} 3. g3 {[%clk 0:03:00]}  d5 {[%clk 0:03:00]} 4. Bg2 {[%clk 0:03:01]}  Bb4+ {[%clk 0:02:59]} 5. Nd2 {[%clk 0:02:59]}  O-O {[%clk 0:02:56]} 6. Qc2 {[%clk 0:02:58]}  c6 {[%clk 0:02:40]} 7. Nf3 {[%clk 0:02:56]}  Nbd7 {[%clk 0:02:36]} 8. O-O {[%clk 0:02:55]}  a5 {[%clk 0:02:14]} 9. e4 {[%clk 0:02:54]}  Be7 {[%clk 0:01:53]} 10. e5 {[%clk 0:02:50]}  Ne8 {[%clk 0:01:53]} 11. h4 {[%clk 0:02:45]}  b6 {[%clk 0:01:44]} 12. cxd5 {[%clk 0:02:41]}  cxd5 {[%clk 0:01:44]} 13. b3 {[%clk 0:02:38]}  Ba6 {[%clk 0:01:43]} 14. Rd1 {[%clk 0:02:37]}  Rc8 {[%clk 0:01:43]} 15. Qb1 {[%clk 0:02:35]}  Nc7 {[%clk 0:01:36]} 16. Bb2 {[%clk 0:02:32]}  Nb5 {[%clk 0:01:21]} 17. Qd3 {[%clk 0:02:24]}  Nb8 {[%clk 0:01:14]} 18. Qe3 {[%clk 0:02:12]}  Nc6 {[%clk 0:01:08]} 19. a4 {[%clk 0:02:06]}  Nc7 {[%clk 0:01:07]} 20. Bf1 {[%clk 0:01:59]}  Bxf1 {[%clk 0:01:06]} 21. Nxf1 {[%clk 0:01:57]}  Na6 {[%clk 0:01:04]} 22. Rac1 {[%clk 0:01:55]}  Nab4 {[%clk 0:01:04]} 23. Qe2 {[%clk 0:01:53]}  Qd7 {[%clk 0:00:58]} 24. Ne3 {[%clk 0:01:51]}  Qb7 {[%clk 0:00:53]} 25. Kg2 {[%clk 0:01:44]}  Qa6 {[%clk 0:00:53]} 26. Qxa6 {[%clk 0:01:39]}  Nxa6 {[%clk 0:00:53]} 27. h5 {[%clk 0:01:33]}  h6 {[%clk 0:00:52]} 28. Rc3 {[%clk 0:01:10]}  Rc7 {[%clk 0:00:48]} 29. Rdc1 {[%clk 0:01:07]}  Rfc8 {[%clk 0:00:49]} 30. g4 {[%clk 0:00:54]}  f6 {[%clk 0:00:43]} 31. R3c2 {[%clk 0:00:40]}  Nab4 {[%clk 0:00:25]} 32. Rd2 {[%clk 0:00:38]}  fxe5 {[%clk 0:00:25]} 33. dxe5 {[%clk 0:00:35]}  Nd8 {[%clk 0:00:19]} 34. Rcd1 {[%clk 0:00:28]}  Bc5 {[%clk 0:00:18]} 35. Bd4 {[%clk 0:00:24]}  Ndc6 {[%clk 0:00:17]} 36. Bxc5 {[%clk 0:00:12]}  bxc5 {[%clk 0:00:17]} 37. Rc1 {[%clk 0:00:11]}  Ne7 {[%clk 0:00:16]} 38. g5 {[%clk 0:00:10]}  d4 {[%clk 0:00:14]} 39. Nc4 {[%clk 0:00:08]}  Ned5 {[%clk 0:00:12]} 40. gxh6 {[%clk 0:00:07]}  gxh6 {[%clk 0:00:12]} 41. Kh2 {[%clk 0:00:07]}  Rg7 {[%clk 0:00:13]} 42. Nxa5 {[%clk 0:00:03]}  Rf8 {[%clk 0:00:13]} 43. Nh4 {[%clk 0:00:02]}  Rf4 {[%clk 0:00:10]} 44. Ng6 {[%clk 0:00:00]}  Rf5 {[%clk 0:00:10]} 0-1

[Event "January 9 Late 2024"]
[Site "https://www.chess.com"]
[Date "2024.01.09"]
[Round "3"]
[White "Atanasov, Anthony"]
[Black "Gryshko, Vitalii"]
[Result "1-0"]
[Board "95"]
[TimeControl "180+1"]
[WhiteFideId "2623897"]
[BlackFideId "14174286"]
[WhiteElo "2670"]
[BlackElo "2503"]
[WhiteTeam "CAN"]
[BlackTeam "UKR"]
[WhiteClock "0:01:14"]
[BlackClock "0:00:09"]

1. d4 {[%clk 0:03:00]}  Nf6 {[%clk 0:02:57]} 2. Nf3 {[%clk 0:02:55]}  c5 {[%clk 0:02:57]} 3. d5 {[%clk 0:02:55]}  e6 {[%clk 0:02:55]} 4. Nc3 {[%clk 0:02:55]}  exd5 {[%clk 0:02:51]} 5. Nxd5 {[%clk 0:02:56]}  Nxd5 {[%clk 0:02:51]} 6. Qxd5 {[%clk 0:02:57]}  Na6 {[%clk 0:02:52]} 7. e4 {[%clk 0:02:51]}  Nb4 {[%clk 0:02:49]} 8. Qb3 {[%clk 0:02:49]}  Be7 {[%clk 0:02:38]} 9. Bc4 {[%clk 0:02:45]}  O-O {[%clk 0:02:11]} 10. h4 {[%clk 0:02:31]}  b5 {[%clk 0:02:01]} 11. Bd5 {[%clk 0:02:26]}  c4 {[%clk 0:01:59]} 12. Qc3 {[%clk 0:02:16]}  Nxd5 {[%clk 0:01:55]} 13. exd5 {[%clk 0:02:17]}  Bf6 {[%clk 0:01:55]} 14. Nd4 {[%clk 0:02:13]}  Re8+ {[%clk 0:01:55]} 15. Be3 {[%clk 0:02:13]}  Bb7 {[%clk 0:01:52]} 16. O-O-O {[%clk 0:02:07]}  Bxd5 {[%clk 0:01:51]} 17. h5 {[%clk 0:02:07]}  a5 {[%clk 0:01:49]} 18. h6 {[%clk 0:02:00]}  b4 {[%clk 0:01:49]} 19. Qd2 {[%clk 0:01:59]}  c3 {[%clk 0:01:27]} 20. Qd3 {[%clk 0:01:58]}  Be4 {[%clk 0:01:25]} 21. Qb5 {[%clk 0:01:54]}  Rb8 {[%clk 0:01:21]} 22. Qh5 {[%clk 0:01:47]}  g6 {[%clk 0:01:19]} 23. Qg4 {[%clk 0:01:45]}  Qc7 {[%clk 0:01:14]} 24. Bf4 {[%clk 0:01:36]}  cxb2+ {[%clk 0:01:13]} 25. Kb1 {[%clk 0:01:36]}  Qc3 {[%clk 0:00:55]} 26. Rh3 {[%clk 0:01:31]}  Bf5 {[%clk 0:00:20]} 27. Nxf5 {[%clk 0:01:23]}  Qc4 {[%clk 0:00:14]} 28. Re3 {[%clk 0:01:14]}  Rxe3 {[%clk 0:00:13]} 29. Nxe3 {[%clk 0:01:14]}  Qe4 {[%clk 0:00:09]} 30. Bxb8 {[%clk 0:01:14]} 1-0

[Event "January 9 Late 2024"]
[Site "https://www.chess.com"]
[Date "2024.01.09"]
[Round "3"]
[White "Pourkashiyan, Atousa"]
[Black "Baziuk, Vladyslav"]
[Result "0-1"]
[Board "96"]
[TimeControl "180+1"]
[WhiteFideId "12502014"]
[BlackFideId "34107940"]
[WhiteElo "2498"]
[BlackElo "2669"]
[WhiteTeam "USA"]
[BlackTeam "UKR"]
[WhiteClock "0:00:11"]
[BlackClock "0:00:27"]

1. d4 {[%clk 0:03:00]}  Nf6 {[%clk 0:02:59]} 2. c4 {[%clk 0:03:00]}  g6 {[%clk 0:02:59]} 3. Nc3 {[%clk 0:03:01]}  d5 {[%clk 0:02:59]} 4. cxd5 {[%clk 0:02:56]}  Nxd5 {[%clk 0:03:00]} 5. e4 {[%clk 0:02:56]}  Nxc3 {[%clk 0:03:01]} 6. bxc3 {[%clk 0:02:57]}  Bg7 {[%clk 0:03:01]} 7. Nf3 {[%clk 0:02:56]}  c5 {[%clk 0:03:01]} 8. Bc4 {[%clk 0:02:53]}  O-O {[%clk 0:02:57]} 9. O-O {[%clk 0:02:52]}  Bg4 {[%clk 0:02:56]} 10. Be3 {[%clk 0:02:48]}  cxd4 {[%clk 0:02:54]} 11. cxd4 {[%clk 0:02:48]}  Nc6 {[%clk 0:02:54]} 12. Bd5 {[%clk 0:02:37]}  Bxf3 {[%clk 0:02:37]} 13. Qxf3 {[%clk 0:02:33]}  Nxd4 {[%clk 0:02:35]} 14. Bxd4 {[%clk 0:02:33]}  Bxd4 {[%clk 0:02:35]} 15. Rad1 {[%clk 0:02:34]}  e5 {[%clk 0:02:34]} 16. Bxb7 {[%clk 0:02:34]}  Rb8 {[%clk 0:02:33]} 17. Bd5 {[%clk 0:02:34]}  Rb2 {[%clk 0:02:32]} 18. g3 {[%clk 0:02:33]}  Kg7 {[%clk 0:02:31]} 19. h4 {[%clk 0:02:33]}  f5 {[%clk 0:02:31]} 20. Rxd4 {[%clk 0:01:57]}  exd4 {[%clk 0:02:28]} 21. Qa3 {[%clk 0:01:52]}  fxe4 {[%clk 0:01:39]} 22. Qxa7+ {[%clk 0:01:38]}  Kh8 {[%clk 0:01:13]} 23. Qxd4+ {[%clk 0:01:38]}  Qf6 {[%clk 0:01:13]} 24. Qxf6+ {[%clk 0:01:33]}  Rxf6 {[%clk 0:01:14]} 25. Bxe4 {[%clk 0:01:31]}  Rxa2 {[%clk 0:01:14]} 26. Bg2 {[%clk 0:01:17]}  Kg7 {[%clk 0:01:13]} 27. Bd5 {[%clk 0:01:14]}  Rb2 {[%clk 0:01:13]} 28. Bg2 {[%clk 0:01:11]}  Rd6 {[%clk 0:01:13]} 29. Rc1 {[%clk 0:01:02]}  Rdd2 {[%clk 0:01:11]} 30. Rf1 {[%clk 0:00:59]}  Kf6 {[%clk 0:01:10]} 31. Be4 {[%clk 0:00:56]}  Ke5 {[%clk 0:01:08]} 32. Bc6 {[%clk 0:00:54]}  Kd4 {[%clk 0:01:06]} 33. Kg2 {[%clk 0:00:53]}  Kd3 {[%clk 0:01:00]} 34. Kf3 {[%clk 0:00:53]}  Rb6 {[%clk 0:00:58]} 35. Be4+ {[%clk 0:00:52]}  Kd4 {[%clk 0:00:59]} 36. Bb1 {[%clk 0:00:46]}  Rf6+ {[%clk 0:00:54]} 37. Kg2 {[%clk 0:00:47]}  Rb6 {[%clk 0:00:52]} 38. Kf3 {[%clk 0:00:46]}  Rb3+ {[%clk 0:00:51]} 39. Kg2 {[%clk 0:00:46]}  Rbb2 {[%clk 0:00:51]} 40. Kf3 {[%clk 0:00:44]}  Ke5 {[%clk 0:00:49]} 41. Re1+ {[%clk 0:00:40]}  Kf6 {[%clk 0:00:48]} 42. Rf1 {[%clk 0:00:41]}  h6 {[%clk 0:00:47]} 43. Kg2 {[%clk 0:00:40]}  g5 {[%clk 0:00:47]} 44. hxg5+ {[%clk 0:00:40]}  Kxg5 {[%clk 0:00:41]} 45. Be4 {[%clk 0:00:40]}  h5 {[%clk 0:00:41]} 46. Bf3 {[%clk 0:00:40]}  h4 {[%clk 0:00:41]} 47. gxh4+ {[%clk 0:00:40]}  Kxh4 {[%clk 0:00:42]} 48. Rh1+ {[%clk 0:00:40]}  Kg5 {[%clk 0:00:43]} 49. Rf1 {[%clk 0:00:41]}  Kf4 {[%clk 0:00:42]} 50. Bc6 {[%clk 0:00:41]}  Rb6 {[%clk 0:00:42]} 51. Rc1 {[%clk 0:00:38]}  Rbb2 {[%clk 0:00:40]} 52. Rf1 {[%clk 0:00:35]}  Rd6 {[%clk 0:00:40]} 53. Rc1 {[%clk 0:00:34]}  Rg6+ {[%clk 0:00:34]} 54. Kf1 {[%clk 0:00:34]}  Rh6 {[%clk 0:00:34]} 55. Rc4+ {[%clk 0:00:34]}  Ke5 {[%clk 0:00:34]} 56. Ke1 {[%clk 0:00:33]}  Rh2 {[%clk 0:00:31]} 57. f4+ {[%clk 0:00:32]}  Kd6 {[%clk 0:00:30]} 58. Rc1 {[%clk 0:00:30]}  Rhf2 {[%clk 0:00:27]} 59. Be4 {[%clk 0:00:11]}  Rbe2+ {[%clk 0:00:27]} 0-1

[Event "January 9 Late 2024"]
[Site "https://www.chess.com"]
[Date "2024.01.09"]
[Round "3"]
[White "Goncalves, Davi Sulzbacher"]
[Black "Niedbala, Bartlomiej"]
[Result "0-1"]
[Board "97"]
[TimeControl "180+1"]
[WhiteFideId "2154510"]
[BlackFideId "21834008"]
[WhiteElo "2497"]
[BlackElo "2668"]
[WhiteTeam "BRA"]
[BlackTeam "POL"]
[WhiteClock "0:00:30"]
[BlackClock "0:00:51"]

1. d4 {[%clk 0:03:00]}  Nf6 {[%clk 0:02:58]} 2. c4 {[%clk 0:03:01]}  e6 {[%clk 0:02:58]} 3. Nc3 {[%clk 0:03:01]}  d5 {[%clk 0:02:58]} 4. Bg5 {[%clk 0:03:01]}  Nbd7 {[%clk 0:02:55]} 5. e3 {[%clk 0:03:01]}  c6 {[%clk 0:02:55]} 6. f4 {[%clk 0:03:00]}  h6 {[%clk 0:02:54]} 7. Bh4 {[%clk 0:02:59]}  Bb4 {[%clk 0:02:55]} 8. Nf3 {[%clk 0:02:59]}  g5 {[%clk 0:02:55]} 9. fxg5 {[%clk 0:02:56]}  Ne4 {[%clk 0:02:55]} 10. Qb3 {[%clk 0:02:53]}  Bxc3+ {[%clk 0:02:51]} 11. bxc3 {[%clk 0:02:54]}  hxg5 {[%clk 0:02:51]} 12. Bf2 {[%clk 0:02:51]}  g4 {[%clk 0:02:51]} 13. Nd2 {[%clk 0:02:49]}  Nxf2 {[%clk 0:02:48]} 14. Kxf2 {[%clk 0:02:49]}  g3+ {[%clk 0:02:48]} 15. Kxg3 {[%clk 0:02:40]}  Qh4+ {[%clk 0:02:17]} 16. Kf3 {[%clk 0:02:39]}  e5 {[%clk 0:02:06]} 17. Ke2 {[%clk 0:02:18]}  Qg4+ {[%clk 0:01:53]} 18. Kf2 {[%clk 0:02:08]}  Nf6 {[%clk 0:01:42]} 19. Be2 {[%clk 0:02:06]}  Qf5+ {[%clk 0:01:39]} 20. Kg1 {[%clk 0:02:04]}  Qg5 {[%clk 0:01:39]} 21. Nf1 {[%clk 0:01:58]}  Bh3 {[%clk 0:01:35]} 22. g3 {[%clk 0:01:49]}  Bxf1 {[%clk 0:01:27]} 23. Kxf1 {[%clk 0:01:45]}  Qxe3 {[%clk 0:01:19]} 24. Qxb7 {[%clk 0:01:39]}  O-O {[%clk 0:01:11]} 25. Qb2 {[%clk 0:00:54]}  Ne4 {[%clk 0:00:59]} 26. Kg2 {[%clk 0:00:53]}  Qf2+ {[%clk 0:00:54]} 27. Kh3 {[%clk 0:00:30]}  Kg7 {[%clk 0:00:51]} 0-1

[Event "January 9 Late 2024"]
[Site "https://www.chess.com"]
[Date "2024.01.10"]
[Round "3"]
[White "Saha, Ananda"]
[Black "Shandrygin, Nikita"]
[Result "1-0"]
[Board "102"]
[TimeControl "180+1"]
[WhiteFideId "2619644"]
[BlackFideId "24198668"]
[WhiteElo "2487"]
[BlackElo "2661"]
[WhiteTeam "CAN"]
[BlackTeam "RUS"]
[WhiteClock "0:00:47"]
[BlackClock "0:00:38"]

1. d4 {[%clk 0:03:00]}  d5 {[%clk 0:02:54]} 2. Nf3 {[%clk 0:03:00]}  Nc6 {[%clk 0:02:55]} 3. Bf4 {[%clk 0:02:55]}  Bg4 {[%clk 0:02:56]} 4. e3 {[%clk 0:02:54]}  e6 {[%clk 0:02:56]} 5. c4 {[%clk 0:02:47]}  Bd6 {[%clk 0:02:56]} 6. Bxd6 {[%clk 0:02:42]}  Qxd6 {[%clk 0:02:55]} 7. Nc3 {[%clk 0:02:39]}  Nf6 {[%clk 0:02:54]} 8. a3 {[%clk 0:02:29]}  O-O {[%clk 0:02:53]} 9. h3 {[%clk 0:02:26]}  Bh5 {[%clk 0:02:52]} 10. cxd5 {[%clk 0:02:21]}  exd5 {[%clk 0:02:45]} 11. Bd3 {[%clk 0:02:21]}  Nd8 {[%clk 0:02:38]} 12. Qc2 {[%clk 0:02:17]}  Bxf3 {[%clk 0:02:34]} 13. gxf3 {[%clk 0:02:18]}  c5 {[%clk 0:02:31]} 14. Nb5 {[%clk 0:02:14]}  Qb6 {[%clk 0:02:25]} 15. Qxc5 {[%clk 0:02:06]}  Qxc5 {[%clk 0:02:21]} 16. dxc5 {[%clk 0:02:06]}  Ne6 {[%clk 0:02:22]} 17. b4 {[%clk 0:02:03]}  a5 {[%clk 0:02:22]} 18. Kd2 {[%clk 0:02:01]}  Nd7 {[%clk 0:02:13]} 19. f4 {[%clk 0:01:51]}  Nb8 {[%clk 0:01:50]} 20. f5 {[%clk 0:01:44]}  Ng5 {[%clk 0:01:50]} 21. Nc7 {[%clk 0:01:40]}  Ra7 {[%clk 0:01:49]} 22. b5 {[%clk 0:01:40]}  Nd7 {[%clk 0:01:45]} 23. b6 {[%clk 0:01:38]}  Raa8 {[%clk 0:01:45]} 24. Nxa8 {[%clk 0:01:37]}  Rxa8 {[%clk 0:01:46]} 25. Rac1 {[%clk 0:01:32]}  Nf3+ {[%clk 0:01:46]} 26. Ke2 {[%clk 0:01:31]}  Nfe5 {[%clk 0:01:47]} 27. f4 {[%clk 0:01:31]}  Nc6 {[%clk 0:01:47]} 28. Bb5 {[%clk 0:01:30]}  Kf8 {[%clk 0:01:45]} 29. Rhd1 {[%clk 0:01:28]}  Nf6 {[%clk 0:01:44]} 30. Bxc6 {[%clk 0:01:27]}  bxc6 {[%clk 0:01:45]} 31. Rb1 {[%clk 0:01:15]}  Rb8 {[%clk 0:01:45]} 32. a4 {[%clk 0:01:07]}  Ne4 {[%clk 0:01:45]} 33. Rb3 {[%clk 0:01:06]}  Nxc5 {[%clk 0:01:35]} 34. Rc3 {[%clk 0:01:04]}  Nxa4 {[%clk 0:01:35]} 35. Rxc6 {[%clk 0:01:04]}  Rxb6 {[%clk 0:01:36]} 36. Rc8+ {[%clk 0:01:00]}  Ke7 {[%clk 0:01:33]} 37. Rxd5 {[%clk 0:01:01]}  g6 {[%clk 0:00:54]} 38. Rxa5 {[%clk 0:00:54]}  Rb2+ {[%clk 0:00:55]} 39. Kf3 {[%clk 0:00:54]}  Nb6 {[%clk 0:00:55]} 40. Ra7+ {[%clk 0:00:50]}  Kd6 {[%clk 0:00:47]} 41. Rb8 {[%clk 0:00:49]}  gxf5 {[%clk 0:00:43]} 42. Rab7 {[%clk 0:00:47]}  Kc6 {[%clk 0:00:43]} 43. Rxf7 {[%clk 0:00:47]}  Kc5 {[%clk 0:00:38]} 44. Rxf5+ {[%clk 0:00:47]} 1-0

[Event "January 9 Late 2024"]
[Site "https://www.chess.com"]
[Date "2024.01.09"]
[Round "3"]
[White "Lopusiewicz, Piotr"]
[Black "Yurovskykh, Oleksandr"]
[Result "1-0"]
[Board "103"]
[TimeControl "180+1"]
[WhiteFideId "1116029"]
[BlackFideId "14134020"]
[WhiteElo "2483"]
[BlackElo "2660"]
[WhiteTeam "POL"]
[BlackTeam "UKR"]
[WhiteClock "0:00:16"]
[BlackClock "0:00:00"]

1. d4 {[%clk 0:03:00]}  d5 {[%clk 0:02:59]} 2. c4 {[%clk 0:03:01]}  dxc4 {[%clk 0:02:58]} 3. e3 {[%clk 0:03:01]}  Nf6 {[%clk 0:02:58]} 4. Bxc4 {[%clk 0:03:01]}  e6 {[%clk 0:02:58]} 5. Nf3 {[%clk 0:03:01]}  c5 {[%clk 0:02:54]} 6. O-O {[%clk 0:03:01]}  Nc6 {[%clk 0:02:54]} 7. dxc5 {[%clk 0:03:01]}  Bxc5 {[%clk 0:02:52]} 8. Qxd8+ {[%clk 0:03:01]}  Kxd8 {[%clk 0:02:53]} 9. b3 {[%clk 0:02:58]}  Ke7 {[%clk 0:02:51]} 10. Be2 {[%clk 0:02:56]}  b6 {[%clk 0:02:50]} 11. Ne1 {[%clk 0:02:51]}  Bb7 {[%clk 0:02:50]} 12. Nd3 {[%clk 0:02:51]}  Bd6 {[%clk 0:02:49]} 13. Nd2 {[%clk 0:02:52]}  Rac8 {[%clk 0:02:45]} 14. Nc4 {[%clk 0:02:51]}  Rhd8 {[%clk 0:02:36]} 15. Nxd6 {[%clk 0:02:51]}  Kxd6 {[%clk 0:02:35]} 16. Ba3+ {[%clk 0:02:51]}  Kc7 {[%clk 0:02:30]} 17. Rac1 {[%clk 0:02:51]}  Kb8 {[%clk 0:02:29]} 18. Rfd1 {[%clk 0:02:49]}  Rd7 {[%clk 0:02:20]} 19. f3 {[%clk 0:02:43]}  Rcd8 {[%clk 0:02:20]} 20. Bb2 {[%clk 0:02:33]}  Ba6 {[%clk 0:02:08]} 21. Ne5 {[%clk 0:02:18]}  Rxd1+ {[%clk 0:02:03]} 22. Bxd1 {[%clk 0:01:58]}  Nxe5 {[%clk 0:01:52]} 23. Bxe5+ {[%clk 0:01:57]}  Ka8 {[%clk 0:01:53]} 24. Bc2 {[%clk 0:01:26]}  Rc8 {[%clk 0:01:38]} 25. Bxf6 {[%clk 0:01:25]}  Bd3 {[%clk 0:01:27]} 26. Bxg7 {[%clk 0:01:18]}  Rxc2 {[%clk 0:01:26]} 27. Rd1 {[%clk 0:01:01]}  Bg6 {[%clk 0:01:15]} 28. a4 {[%clk 0:00:54]}  a5 {[%clk 0:00:59]} 29. Rd7 {[%clk 0:00:43]}  Rc1+ {[%clk 0:00:50]} 30. Kf2 {[%clk 0:00:42]}  Rb1 {[%clk 0:00:50]} 31. e4 {[%clk 0:00:39]}  Rxb3 {[%clk 0:00:48]} 32. Kg3 {[%clk 0:00:40]}  Rb4 {[%clk 0:00:34]} 33. Bd4 {[%clk 0:00:38]}  Rxa4 {[%clk 0:00:30]} 34. Bxb6 {[%clk 0:00:37]}  Ra2 {[%clk 0:00:19]} 35. Ra7+ {[%clk 0:00:18]}  Kb8 {[%clk 0:00:20]} 36. Rxa5 {[%clk 0:00:19]}  Rxa5 {[%clk 0:00:20]} 37. Bxa5 {[%clk 0:00:20]}  Kc8 {[%clk 0:00:19]} 38. Kf4 {[%clk 0:00:20]}  f6 {[%clk 0:00:16]} 39. Bc3 {[%clk 0:00:19]}  e5+ {[%clk 0:00:16]} 40. Bxe5 {[%clk 0:00:18]}  fxe5+ {[%clk 0:00:14]} 41. Kxe5 {[%clk 0:00:19]}  Kd7 {[%clk 0:00:13]} 42. Kf6 {[%clk 0:00:19]}  Ke8 {[%clk 0:00:12]} 43. g4 {[%clk 0:00:19]}  Kf8 {[%clk 0:00:09]} 44. h4 {[%clk 0:00:19]}  Be8 {[%clk 0:00:09]} 45. h5 {[%clk 0:00:18]}  h6 {[%clk 0:00:06]} 46. f4 {[%clk 0:00:17]}  Bc6 {[%clk 0:00:06]} 47. e5 {[%clk 0:00:17]}  Bf3 {[%clk 0:00:06]} 48. Kg6 {[%clk 0:00:14]}  Bxg4 {[%clk 0:00:06]} 49. Kxh6 {[%clk 0:00:15]}  Kf7 {[%clk 0:00:06]} 50. Kg5 {[%clk 0:00:15]}  Bd1 {[%clk 0:00:04]} 51. f5 {[%clk 0:00:16]}  Bc2 {[%clk 0:00:03]} 52. e6+ {[%clk 0:00:15]}  Ke7 {[%clk 0:00:00]} 53. h6 {[%clk 0:00:16]} 1-0